bitfinex/quotes_BTCUSD_20240820
["timestamp","ask_amount","ask_price","bid_price","bid_amount"]
[1724177209896,0.00082,59376.0,59373.0,0.0825]
[1724177211671,0.00082,59376.0,59374.0,0.10664]
[1724177211879,0.00082,59376.0,59375.0,0.0801]
[1724177212085,0.00082,59376.0,59375.0,0.11398]
[1724177213599,0.00082,59376.0,59375.0,0.12798]
[1724177213813,0.00082,59376.0,59375.0,0.13134776]
[1724177214030,0.00082,59376.0,59375.0,0.18134771]
[1724177214508,0.00082,59376.0,59375.0,0.19534771]
[1724177215215,0.00082,59376.0,59375.0,0.19634771]
[1724177215418,0.00082,59376.0,59375.0,0.18434771]
[1724177215601,0.00082,59376.0,59375.0,0.17034771]
[1724177216006,0.00082,59376.0,59375.0,0.18820571]
[1724177216150,0.00082,59376.0,59375.0,0.20220571]
[1724177216741,0.00082,59376.0,59375.0,0.15220576]
[1724177220273,0.00082,59376.0,59375.0,0.034858]
[1724177221043,0.00082,59376.0,59375.0,0.020858]
[1724177221251,0.00082,59376.0,59375.0,0.054738]
[1724177221459,0.00082,59376.0,59375.0,0.068738]
[1724177221887,0.00082,59376.0,59375.0,0.01022606]
[1724177222088,0.00082,59376.0,59375.0,0.100958]
[1724177222289,0.00082,59376.0,59375.0,0.148838]
[1724177222536,0.00082,59376.0,59375.0,0.134838]
[1724177222735,0.00082,59376.0,59375.0,0.148838]
[1724177222956,0.00082,59376.0,59375.0,0.15220579]
[1724177223124,0.00082,59376.0,59375.0,0.24619637]
[1724177223323,0.00082,59376.0,59375.0,0.26019637]
[1724177224138,0.00082,59376.0,59375.0,0.24619637]
[1724177224575,0.00082,59376.0,59375.0,0.26019637]
[1724177224901,0.00082,59376.0,59375.0,0.22555699]
[1724177225108,0.00082,59376.0,59375.0,0.21155699]
[1724177225314,0.00082,59376.0,59375.0,0.22555699]
[1724177225498,0.00082,59376.0,59375.0,0.21155699]
[1724177225733,0.00082,59376.0,59375.0,0.2221892]
[1724177226303,0.00082,59376.0,59375.0,0.22555693]
[1724177226509,0.00082,59376.0,59375.0,0.29135666]
[1724177226709,0.00082,59376.0,59375.0,0.28798909]
[1724177227282,0.00082,59376.0,59375.0,0.2221892]
[1724177229203,0.00082,59376.0,59375.0,0.46129299]
[1724177229338,0.00020366,59388.0,59387.0,0.4378]
[1724177230753,0.00020366,59388.0,59387.0,0.4518]
[1724177231321,0.00020366,59388.0,59387.0,0.4378]
[1724177231657,0.00020366,59388.0,59387.0,0.49558]
[1724177231994,0.00020366,59388.0,59387.0,0.50958]
[1724177232194,0.00020366,59388.0,59387.0,0.49558]
[1724177232394,0.00020366,59388.0,59387.0,0.4378]
[1724177232595,0.00020366,59388.0,59387.0,0.4518]
[1724177232791,0.00020366,59388.0,59387.0,0.3087]
[1724177232996,0.01589987,59388.0,59387.0,0.3087]
[1724177233199,0.00020366,59388.0,59387.0,0.3087]
[1724177233396,0.00020366,59388.0,59387.0,0.014]
[1724177233649,0.00020366,59388.0,59387.0,0.028]
[1724177234089,0.01589929,59388.0,59387.0,0.028]
[1724177235858,0.01589939,59388.0,59387.0,0.028]
[1724177237955,0.01671939,59388.0,59387.0,0.028]
[1724177242734,0.04261939,59388.0,59387.0,0.028]
[1724177243144,0.01671939,59388.0,59387.0,0.028]
[1724177244004,0.00102366,59388.0,59387.0,0.028]
[1724177244208,0.01672087,59388.0,59387.0,0.028]
[1724177244944,0.07580218,59388.0,59387.0,0.028]
[1724177245532,0.10170218,59388.0,59387.0,0.028]
[1724177245733,0.04262087,59388.0,59387.0,0.028]
[1724177246031,0.04262087,59388.0,59378.0,0.01022762]
[1724177246203,0.01569721,59387.0,59378.0,0.01022762]
[1724177246406,0.01569721,59386.0,59376.0,0.13830274]
[1724177246569,0.01569721,59385.0,59376.0,0.18567681]
[1724177246765,0.01569721,59384.0,59376.0,0.18567681]
[1724177246997,0.00102366,59388.0,59377.0,0.0762]
[1724177246998,0.01569721,59383.0,59377.0,0.0762]
[1724177247200,0.01569721,59382.0,59378.0,0.008]
[1724177247558,0.00102366,59388.0,59378.0,0.008]
[1724177247559,0.01569721,59381.0,59378.0,0.008]
[1724177247716,0.01569721,59380.0,59377.0,0.16217148]
[1724177247921,0.00102366,59388.0,59377.0,0.11008]
[1724177248101,0.01569691,59387.0,59377.0,0.11008]
[1724177248303,0.00102366,59388.0,59377.0,0.11008]
[1724177248521,0.00102366,59388.0,59378.0,0.011]
[1724177248522,0.01569662,59387.0,59378.0,0.011]
[1724177248703,0.01569662,59386.0,59377.0,0.11008]
[1724177248920,0.01569662,59385.0,59378.0,0.04956675]
[1724177249127,0.01569662,59384.0,59379.0,0.0781]
[1724177249356,0.01569662,59383.0,59379.0,0.0781]
[1724177249569,0.00102366,59388.0,59380.0,0.02489439]
[1724177249763,0.01569619,59387.0,59380.0,0.02489439]
[1724177250001,0.01569619,59386.0,59380.0,0.02489439]
[1724177250204,0.01569619,59385.0,59380.0,0.02489439]
[1724177250416,0.01569619,59384.0,59380.0,0.02489439]
[1724177250665,0.01569619,59383.0,59379.0,0.12598]
[1724177250860,0.00102366,59388.0,59381.0,0.0033676]
[1724177250861,0.01569619,59382.0,59381.0,0.0033676]
[1724177251067,0.01569619,59387.0,59381.0,0.0033676]
[1724177251266,0.01569619,59386.0,59381.0,0.0033676]
[1724177251469,0.01569619,59385.0,59381.0,0.0033676]
[1724177251810,0.01569619,59384.0,59381.0,0.0033676]
[1724177251985,0.01569619,59383.0,59380.0,0.014]
[1724177252211,0.01569619,59382.0,59380.0,0.014]
[1724177252335,0.01569619,59382.0,59381.0,0.0033676]
[1724177252816,0.00102366,59388.0,59380.0,0.03918459]
[1724177252957,0.01569622,59387.0,59381.0,0.014]
[1724177253165,0.01569622,59386.0,59381.0,0.014]
[1724177253367,0.01569622,59385.0,59381.0,0.014]
[1724177253637,0.01569622,59384.0,59381.0,0.014]
[1724177253805,0.01569622,59383.0,59381.0,0.028]
[1724177254042,0.00102366,59388.0,59379.0,0.11198]
[1724177254255,0.01569622,59387.0,59381.0,0.014]
[1724177254456,0.00102366,59388.0,59381.0,0.014]
[1724177254457,0.01569622,59386.0,59381.0,0.014]
[1724177254741,0.01569622,59385.0,59379.0,0.11198]
[1724177254919,0.01569622,59384.0,59379.0,0.11198]
[1724177255119,0.01569622,59383.0,59379.0,0.11198]
[1724177255322,0.00102366,59388.0,59379.0,0.11198]
[1724177255523,0.01569622,59387.0,59379.0,0.11198]
[1724177255755,0.01569622,59386.0,59379.0,0.11198]
[1724177255953,0.01569622,59385.0,59379.0,0.11198]
[1724177256125,0.01569622,59384.0,59381.0,0.014]
[1724177256327,0.01569622,59383.0,59379.0,0.11198]
[1724177256532,0.00102366,59388.0,59381.0,0.014]
[1724177256807,0.01569624,59382.0,59381.0,0.014]
[1724177257012,0.00102366,59388.0,59376.0,0.07293152]
[1724177257013,0.0259,59387.0,59376.0,0.07293152]
[1724177257225,0.01990649,59386.0,59379.0,0.014]
[1724177257434,0.01990649,59386.0,59381.0,0.014]
[1724177257435,0.01569825,59386.0,59381.0,0.014]
[1724177257640,0.01569825,59385.0,59381.0,0.014]
[1724177257863,0.01569825,59384.0,59381.0,0.014]
[1724177258062,0.01569825,59383.0,59381.0,0.014]
[1724177258196,0.01569825,59382.0,59381.0,0.014]
[1724177259023,0.01569825,59382.0,59376.0,0.02523152]
[1724177259285,0.01569825,59381.0,59376.0,0.02523152]
[1724177259485,0.01569825,59380.0,59379.0,0.0924]
[1724177259685,0.01569825,59380.0,59379.0,0.0804]
[1724177260132,0.01569825,59387.0,59379.0,0.0804]
[1724177260337,0.001,59384.0,59381.0,0.013]
[1724177260512,0.01569868,59383.0,59381.0,0.013]
[1724177260713,0.01569868,59382.0,59380.0,0.0639]
[1724177260923,0.01569868,59381.0,59380.0,0.0639]
[1724177261136,0.01569868,59381.0,59379.0,0.014]
[1724177261137,0.01569705,59381.0,59379.0,0.014]
[1724177261344,0.01569705,59380.0,59379.0,0.014]
[1724177261571,0.01569705,59387.0,59376.0,0.09163152]
[1724177261819,0.04580727,59386.0,59376.0,0.01123152]
[1724177262081,0.04580727,59386.0,59376.0,0.00110474]
[1724177262082,0.01569705,59385.0,59376.0,0.00110474]
[1724177262359,0.01990728,59384.0,59376.0,0.00110474]
[1724177262603,0.12532284,59383.0,59379.0,0.011]
[1724177262851,0.12953329,59382.0,59381.0,0.014]
[1724177263084,0.13053329,59382.0,59381.0,0.014]
[1724177263327,0.07145248,59382.0,59376.0,0.01310474]
[1724177263574,0.01569705,59381.0,59376.0,0.00110474]
[1724177263818,0.01990762,59380.0,59379.0,0.014]
[1724177264059,0.01990762,59380.0,59376.0,0.01410474]
[1724177264296,0.06623452,59379.0,59376.0,0.00110474]
[1724177264561,0.01990776,59378.0,59376.0,0.01010474]
[1724177264802,0.01569705,59377.0,59376.0,0.01010474]
[1724177265091,0.01570196,59377.0,59376.0,0.01010474]
[1724177265566,0.01570196,59377.0,59376.0,0.009902]
[1724177265834,0.04581269,59377.0,59376.0,0.000902]
[1724177266102,0.06798516,59377.0,59376.0,0.000902]
[1724177266352,0.06798516,59377.0,59376.0,0.006902]
[1724177266588,0.14372996,59377.0,59376.0,0.006902]
[1724177266853,0.14372996,59377.0,59376.0,0.000902]
[1724177267160,0.14472996,59377.0,59376.0,0.000902]
[1724177267388,0.04681323,59377.0,59376.0,0.000902]
[1724177267653,0.04160196,59377.0,59376.0,0.000902]
[1724177267929,0.04581298,59377.0,59376.0,0.002902]
[1724177268184,0.24681298,59377.0,59376.0,0.006902]
[1724177268447,0.32366492,59377.0,59376.0,0.006902]
[1724177268708,0.27319809,59377.0,59376.0,0.006902]
[1724177268979,0.34894289,59377.0,59376.0,0.006902]
[1724177269278,0.35194289,59377.0,59376.0,0.004902]
[1724177269443,0.35194289,59377.0,59376.0,0.007902]
[1724177269444,0.27720061,59377.0,59376.0,0.007902]
[1724177269650,0.27720061,59377.0,59376.0,0.015902]
[1724177269651,0.27520061,59377.0,59376.0,0.015902]
[1724177269894,0.27520061,59377.0,59376.0,0.000902]
[1724177269895,0.27320061,59377.0,59376.0,0.000902]
[1724177270309,0.32465169,59377.0,59376.0,0.000902]
[1724177270523,0.30691939,59377.0,59376.0,0.000902]
[1724177270728,0.30270813,59377.0,59376.0,0.000902]
[1724177270931,0.24360448,59377.0,59376.0,0.000902]
[1724177271793,0.24340178,59377.0,59376.0,0.000902]
[1724177271973,0.24761306,59377.0,59376.0,0.000902]
[1724177272187,0.30671585,59377.0,59376.0,0.000902]
[1724177273052,0.24761355,59377.0,59376.0,0.000902]
[1724177273264,0.2739999,59377.0,59376.0,0.003902]
[1724177273481,0.29806463,59377.0,59376.0,0.003902]
[1724177273684,0.27400019,59377.0,59376.0,0.003902]
[1724177274235,0.27300019,59377.0,59376.0,0.003902]
[1724177274474,0.24661355,59377.0,59376.0,0.003902]
[1724177276146,0.24661355,59377.0,59376.0,0.004902]
[1724177276554,0.24661355,59377.0,59376.0,0.003902]
[1724177276937,0.24340212,59377.0,59376.0,0.003902]
[1724177277136,0.30250764,59377.0,59376.0,0.003902]
[1724177277827,0.30671904,59377.0,59376.0,0.003902]
[1724177278233,0.24761352,59377.0,59376.0,0.003902]
[1724177279660,0.25261352,59377.0,59376.0,0.003902]
[1724177279887,0.27561352,59377.0,59376.0,0.003902]
[1724177280649,0.2599087,59377.0,59376.0,0.003902]
[1724177280870,0.41034578,59377.0,59376.0,0.003902]
[1724177281072,0.30200066,59377.0,59376.0,0.003902]
[1724177281273,0.37358797,59377.0,59376.0,0.003902]
[1724177281477,0.29378926,59377.0,59376.0,0.003902]
[1724177281678,0.26740238,59377.0,59376.0,0.003902]
[1724177281885,0.27140238,59377.0,59376.0,0.003902]
[1724177282116,0.26740238,59377.0,59376.0,0.003902]
[1724177282587,0.27140238,59377.0,59376.0,0.003902]
[1724177282790,0.37337781,59377.0,59376.0,0.003902]
[1724177283002,0.37334911,59377.0,59376.0,0.003902]
[1724177283207,0.2977905,59377.0,59376.0,0.003902]
[1724177283412,0.30200209,59377.0,59376.0,0.003902]
[1724177283618,0.3775607,59377.0,59376.0,0.003902]
[1724177283832,0.7817567,59377.0,59376.0,0.003902]
[1724177285665,0.5122927,59377.0,59376.0,0.003902]
[1724177285864,0.50408111,59377.0,59376.0,0.003902]
[1724177286067,0.50608111,59377.0,59376.0,0.003902]
[1724177286265,0.50690311,59377.0,59376.0,0.003902]
[1724177286466,0.4313445,59377.0,59376.0,0.003902]
[1724177286700,0.77636711,59377.0,59376.0,0.003902]
[1724177286906,0.77436711,59377.0,59376.0,0.003902]
[1724177287109,0.4293445,59377.0,59376.0,0.003902]
[1724177287524,0.2946125,59377.0,59376.0,0.003902]
[1724177287718,0.2966125,59377.0,59376.0,0.003902]
[1724177287946,0.75737815,59377.0,59376.0,0.003902]
[1724177288130,0.43755618,59377.0,59376.0,0.003902]
[1724177288342,0.78255714,59377.0,59376.0,0.003902]
[1724177288743,1.05202114,59377.0,59376.0,0.003902]
[1724177289104,0.97648418,59377.0,59376.0,0.003902]
[1724177289298,1.37184312,59377.0,59376.0,0.003902]
[1724177289532,1.34594818,59377.0,59376.0,0.003902]
[1724177290345,1.34494818,59377.0,59376.0,0.003902]
[1724177290549,1.34494818,59377.0,59376.0,0.000902]
[1724177290965,1.35394818,59377.0,59376.0,0.000902]
[1724177293470,1.18516576,59377.0,59376.0,0.000902]
[1724177293709,1.08448418,59377.0,59376.0,0.000902]
[1724177294129,1.18516034,59377.0,59376.0,0.000902]
[1724177294330,1.47979452,59377.0,59376.0,0.000902]
[1724177294742,1.35394818,59377.0,59376.0,0.000902]
[1724177295143,1.08448418,59377.0,59376.0,0.000902]
[1724177295299,1.18516287,59377.0,59376.0,0.000902]
[1724177295505,1.47979452,59377.0,59376.0,0.000902]
[1724177296281,1.08448418,59377.0,59376.0,0.000902]
[1724177296786,0.85563155,59377.0,59376.0,0.000902]
[1724177296984,0.6801112,59377.0,59376.0,0.000902]
[1724177297226,0.71475161,59377.0,59376.0,0.000902]
[1724177297405,0.66440612,59377.0,59376.0,0.000902]
[1724177297806,0.03221012,59377.0,59376.0,0.064102]
[1724177298015,0.03221012,59377.0,59376.0,0.144902]
[1724177298278,0.03621012,59377.0,59376.0,0.144902]
[1724177298483,0.009822,59377.0,59376.0,0.144902]
[1724177298706,0.004822,59377.0,59376.0,0.144902]
[1724177298945,0.009822,59377.0,59376.0,0.1593922]
[1724177299084,0.009822,59377.0,59376.0,0.4540922]
[1724177299283,0.000822,59380.0,59376.0,0.3100922]
[1724177299773,0.001,59377.0,59376.0,0.4640922]
[1724177300172,0.000822,59380.0,59376.0,0.4640922]
[1724177300173,0.000822,59380.0,59377.0,0.144]
[1724177300376,0.000822,59380.0,59376.0,0.3150922]
[1724177300581,0.000822,59380.0,59378.0,0.144]
[1724177300780,0.00102366,59388.0,59380.0,0.144]
[1724177301095,0.00102366,59388.0,59387.0,0.4377]
[1724177301264,0.00102366,59388.0,59387.0,0.47158]
[1724177301664,0.00102366,59388.0,59387.0,0.47058]
[1724177302073,0.00821,59395.0,59387.0,0.46958]
[1724177302280,0.00821,59395.0,59391.0,0.0621]
[1724177302481,0.00821,59395.0,59392.0,0.0813]
[1724177302681,0.00821,59395.0,59394.0,0.0813]
[1724177302914,0.00821,59395.0,59394.0,0.1434]
[1724177305455,0.00821,59395.0,59394.0,0.1574]
[1724177305456,0.00921,59395.0,59394.0,0.1574]
[1724177305728,0.00821,59395.0,59394.0,0.1434]
[1724177306341,0.00821,59395.0,59394.0,0.1574]
[1724177306541,0.00821,59395.0,59394.0,0.1714]
[1724177306691,0.00821,59395.0,59394.0,0.1574]
[1724177307298,0.00821,59395.0,59394.0,0.1434]
[1724177307707,0.00821,59395.0,59394.0,0.1574]
[1724177308202,0.00921,59395.0,59394.0,0.1714]
[1724177309248,0.00821,59395.0,59394.0,0.1574]
[1724177309772,0.00821,59395.0,59394.0,0.1714]
[1724177311342,0.00821,59395.0,59394.0,0.189361]
[1724177311545,0.00821,59395.0,59394.0,0.1714]
[1724177313259,0.00813,59395.0,59394.0,0.1714]
[1724177314415,0.00813,59395.0,59394.0,0.18159175]
[1724177318579,0.00813,59395.0,59394.0,0.18459175]
[1724177319198,0.00813,59395.0,59394.0,0.18795855]
[1724177319435,0.00813,59395.0,59394.0,0.30799902]
[1724177320140,0.00813,59395.0,59394.0,0.54369202]
[1724177320379,0.0058431,59397.0,59396.0,0.17348]
[1724177320601,0.0058431,59397.0,59396.0,0.27684659]
[1724177320841,0.2116966,59418.0,59397.0,0.134686]
[1724177321040,0.0116966,59418.0,59417.0,0.2947]
[1724177321195,0.0116966,59418.0,59417.0,0.4343]
[1724177321976,0.0116966,59418.0,59417.0,0.1396]
[1724177322819,0.0116966,59418.0,59417.0,0.4343]
[1724177322979,0.0116966,59418.0,59417.0,0.47876783]
[1724177323623,0.0116966,59418.0,59417.0,0.48876783]
[1724177324209,0.0116966,59418.0,59417.0,0.49576783]
[1724177324585,0.0116966,59418.0,59417.0,0.58876783]
[1724177324789,0.0116966,59418.0,59417.0,0.57876783]
[1724177325010,0.0116966,59418.0,59417.0,0.5473]
[1724177326457,0.0116966,59418.0,59417.0,0.1526]
[1724177326934,0.0116966,59418.0,59417.0,0.1666]
[1724177328191,0.0116466,59418.0,59417.0,0.1666]
[1724177328413,0.0116466,59418.0,59417.0,0.4613]
[1724177328545,0.0116466,59418.0,59417.0,0.60743]
[1724177329262,0.0116466,59418.0,59417.0,1.011354]
[1724177329467,0.0116466,59418.0,59417.0,1.280637]
[1724177329899,0.19601,59425.0,59418.0,0.708075]
[1724177330102,0.19601,59425.0,59418.0,0.953775]
[1724177330308,0.19601,59425.0,59418.0,1.16364902]
[1724177330925,0.19601,59425.0,59418.0,1.17764902]
[1724177331358,0.19601,59425.0,59418.0,1.16364902]
[1724177331562,0.19601,59425.0,59418.0,1.17764902]
[1724177331969,0.19601,59425.0,59418.0,0.58428]
[1724177332183,0.19601,59425.0,59418.0,0.59828]
[1724177333629,0.19601,59425.0,59418.0,0.58428]
[1724177333863,0.19601,59425.0,59418.0,0.57028]
[1724177334091,0.19601,59425.0,59418.0,0.58428]
[1724177334305,0.19601,59425.0,59418.0,0.59828]
[1724177334732,0.19601,59425.0,59418.0,0.30358]
[1724177334733,0.001021,59419.0,59418.0,0.30358]
[1724177334964,0.001021,59419.0,59418.0,0.49828]
[1724177335374,0.001021,59419.0,59418.0,0.50863434]
[1724177335585,0.001021,59419.0,59418.0,0.49828]
[1724177336070,0.001021,59419.0,59418.0,0.48428]
[1724177336558,0.001021,59419.0,59418.0,0.532708]
[1724177336981,0.001021,59419.0,59418.0,0.632708]
[1724177337399,0.001021,59419.0,59418.0,0.666708]
[1724177337577,0.001021,59419.0,59418.0,0.652708]
[1724177337811,0.001021,59419.0,59418.0,0.60428]
[1724177339173,0.001021,59419.0,59418.0,0.60628]
[1724177339393,0.001021,59419.0,59418.0,1.280475]
[1724177339584,0.001021,59419.0,59418.0,1.013197]
[1724177340372,0.001021,59419.0,59418.0,1.282475]
[1724177340654,0.001021,59419.0,59418.0,1.30077837]
[1724177340789,0.001021,59419.0,59418.0,1.29677837]
[1724177341260,0.001021,59419.0,59418.0,0.685755]
[1724177341866,0.001021,59419.0,59418.0,0.391055]
[1724177342117,0.001021,59419.0,59418.0,0.32358]
[1724177342579,0.001021,59419.0,59418.0,0.048]
[1724177343602,0.001021,59419.0,59418.0,0.1752]
[1724177343813,0.001021,59419.0,59418.0,0.1612]
[1724177344017,0.001021,59419.0,59418.0,0.1892]
[1724177344191,0.001021,59419.0,59418.0,0.1752]
[1724177344547,0.001021,59419.0,59418.0,0.1612]
[1724177344752,0.001021,59419.0,59418.0,0.1752]
[1724177344963,0.001021,59419.0,59418.0,0.02]
[1724177345187,0.001021,59419.0,59418.0,0.034]
[1724177345393,0.001021,59419.0,59418.0,0.048]
[1724177346640,0.001021,59419.0,59418.0,0.034]
[1724177346756,0.001021,59419.0,59418.0,0.02]
[1724177346956,0.001021,59419.0,59418.0,0.048]
[1724177347154,0.001021,59419.0,59418.0,0.034]
[1724177347378,0.001021,59419.0,59418.0,0.0209031]
[1724177347589,0.001021,59419.0,59418.0,0.0349031]
[1724177348047,0.001021,59419.0,59418.0,0.0489031]
[1724177348684,0.001021,59419.0,59418.0,0.20035341]
[1724177348899,0.001021,59419.0,59418.0,0.1875031]
[1724177349101,0.001021,59419.0,59418.0,0.19768124]
[1724177350549,0.001021,59419.0,59418.0,0.1875031]
[1724177351008,0.001021,59419.0,59418.0,0.1247031]
[1724177352260,0.001021,59419.0,59418.0,0.1047031]
[1724177352773,0.001021,59419.0,59418.0,0.12261205]
[1724177352986,0.001021,59419.0,59418.0,0.18461205]
[1724177353204,0.001021,59419.0,59418.0,0.28997763]
[1724177353410,1e-08,59419.0,59418.0,0.99593263]
[1724177353623,1e-08,59419.0,59418.0,0.99456705]
[1724177354265,1e-08,59419.0,59418.0,0.96656705]
[1724177354420,1e-08,59419.0,59418.0,0.96456705]
[1724177354621,1e-08,59419.0,59418.0,0.99156705]
[1724177354829,1e-08,59419.0,59418.0,0.7043801]
[1724177355404,1e-08,59419.0,59418.0,0.9746581]
[1724177355816,1e-08,59419.0,59418.0,0.9736581]
[1724177356027,1e-08,59419.0,59418.0,0.3004631]
[1724177356669,1e-08,59419.0,59418.0,0.1385631]
[1724177356876,1e-08,59419.0,59418.0,0.0626631]
[1724177357084,1e-08,59419.0,59418.0,0.0289031]
[1724177358134,1e-08,59419.0,59418.0,0.0626631]
[1724177358746,1e-08,59419.0,59418.0,0.08301941]
[1724177358948,1e-08,59419.0,59418.0,0.0626631]
[1724177359358,1e-08,59419.0,59418.0,0.07274606]
[1724177359569,1e-08,59419.0,59418.0,0.15144606]
[1724177359977,1e-08,59419.0,59418.0,0.14081157]
[1724177360213,1e-08,59419.0,59418.0,0.16139273]
[1724177360421,1e-08,59419.0,59418.0,0.17539273]
[1724177360633,1e-08,59419.0,59418.0,0.15481157]
[1724177360847,1e-08,59419.0,59418.0,0.13744606]
[1724177361647,1e-08,59419.0,59418.0,0.15144606]
[1724177362920,1e-08,59419.0,59418.0,0.21941158]
[1724177363137,1e-08,59419.0,59418.0,0.36501612]
[1724177363360,1e-08,59419.0,59418.0,0.31604606]
[1724177363769,1e-08,59419.0,59418.0,0.30204606]
[1724177364180,1e-08,59419.0,59418.0,0.31604606]
[1724177365004,1e-08,59419.0,59418.0,0.25144606]
[1724177365838,1e-08,59419.0,59418.0,0.1626631]
[1724177366054,1e-08,59419.0,59418.0,0.0626631]
[1724177366258,1e-08,59419.0,59418.0,0.0289031]
[1724177367042,1e-08,59419.0,59418.0,0.0149031]
[1724177367476,1e-08,59419.0,59418.0,0.0289031]
[1724177367897,1e-08,59419.0,59418.0,0.0149031]
[1724177368304,0.02570001,59419.0,59418.0,0.0149031]
[1724177368516,0.06860001,59419.0,59418.0,0.0149031]
[1724177369366,0.06860001,59419.0,59418.0,0.0289031]
[1724177369769,0.06860001,59419.0,59418.0,0.0149031]
[1724177369998,0.06860001,59419.0,59418.0,0.0289031]
[1724177375026,0.06839745,59419.0,59418.0,0.0289031]
[1724177377304,0.2,59424.0,59418.0,0.0289031]
[1724177377509,0.0429,59423.0,59418.0,0.0289031]
[1724177378126,0.0684,59423.0,59418.0,0.0289031]
[1724177378534,0.0684,59423.0,59418.0,0.0149031]
[1724177378743,0.0684,59423.0,59418.0,0.0239031]
[1724177379368,0.0684,59423.0,59418.0,0.0149031]
[1724177379574,0.0684,59423.0,59418.0,0.0249031]
[1724177379775,0.00420797,59422.0,59418.0,0.0249031]
[1724177379972,0.0255,59421.0,59418.0,0.0249031]
[1724177380210,0.00420803,59420.0,59418.0,0.0249031]
[1724177380541,0.0694,59419.0,59418.0,0.0249031]
[1724177380748,0.0684,59419.0,59418.0,0.0249031]
[1724177380945,0.17345461,59419.0,59418.0,0.0249031]
[1724177381076,0.09776565,59419.0,59418.0,0.0249031]
[1724177381280,0.17343956,59419.0,59418.0,0.0249031]
[1724177381482,0.09776565,59419.0,59418.0,0.0149031]
[1724177381860,0.09576565,59419.0,59418.0,0.0259031]
[1724177382062,0.19668427,59419.0,59418.0,0.0259031]
[1724177382264,1.13723227,59419.0,59418.0,0.0149031]
[1724177382467,1.19595065,59419.0,59418.0,0.0149031]
[1724177382674,0.92667665,59419.0,59418.0,0.0169031]
[1724177383081,0.92667665,59419.0,59418.0,0.0149031]
[1724177383477,1.02751688,59419.0,59418.0,0.0149031]
[1724177384501,0.92667665,59419.0,59418.0,0.0149031]
[1724177385273,1.00226957,59419.0,59418.0,0.0149031]
[1724177385700,1.27154357,59419.0,59418.0,0.0149031]
[1724177386031,1.01796232,59419.0,59418.0,0.0149031]
[1724177386241,1.28723632,59419.0,59418.0,0.0149031]
[1724177386553,0.337666,59406.0,59405.0,0.08]
[1724177386769,1.59448026,59406.0,59405.0,0.08]
[1724177386971,0.26755824,59406.0,59405.0,0.08]
[1724177387173,0.33437288,59406.0,59405.0,0.08]
[1724177387323,0.24892931,59406.0,59405.0,0.08]
[1724177387528,0.22342931,59406.0,59405.0,0.08]
[1724177388109,0.22842931,59406.0,59405.0,0.08]
[1724177388571,0.22342931,59406.0,59405.0,0.08]
[1724177388882,0.22642931,59406.0,59405.0,0.08]
[1724177389486,0.22342931,59406.0,59405.0,0.08]
[1724177389602,0.22342931,59406.0,59405.0,0.082]
[1724177390621,0.22442931,59406.0,59405.0,0.082]
[1724177390846,0.28413832,59406.0,59405.0,0.082]
[1724177391046,0.41659531,59406.0,59405.0,0.082]
[1724177391247,0.73530348,59406.0,59405.0,0.082]
[1724177391472,1.00463648,59406.0,59405.0,0.082]
[1724177391679,0.73330348,59406.0,59405.0,0.08]
[1724177391886,0.27992931,59406.0,59405.0,0.08]
[1724177392472,0.27692931,59406.0,59405.0,0.08]
[1724177392672,0.28092931,59406.0,59405.0,0.08]
[1724177394203,0.27993214,59406.0,59405.0,0.08]
[1724177394695,0.27693215,59406.0,59405.0,0.082]
[1724177394960,0.27793215,59406.0,59405.0,0.082]
[1724177395256,0.27993215,59406.0,59405.0,0.082]
[1724177395462,0.70893115,59406.0,59405.0,0.0829031]
[1724177395890,0.97826415,59406.0,59405.0,0.0829031]
[1724177396097,1.00463983,59406.0,59405.0,0.0829031]
[1724177396312,0.97826415,59406.0,59405.0,0.0829031]
[1724177396520,1.56867292,59406.0,59405.0,0.0829031]
[1724177396763,1.6189642,59406.0,59405.0,0.0829031]
[1724177396970,1.66867292,59406.0,59405.0,0.0829031]
[1724177397172,1.76925548,59406.0,59405.0,0.0829031]
[1724177397382,1.74406281,59406.0,59405.0,0.0809031]
[1724177397586,1.74806281,59406.0,59405.0,0.0809031]
[1724177398062,1.74406281,59406.0,59405.0,0.0809031]
[1724177398262,1.744067,59406.0,59405.0,0.0809031]
[1724177398437,1.67267711,59406.0,59405.0,0.0809031]
[1724177399853,1.15888384,59406.0,59405.0,0.0809031]
[1724177400094,0.25481211,59406.0,59405.0,0.0809031]
[1724177400402,0.22743634,59406.0,59405.0,0.0809031]
[1724177400731,0.22843634,59406.0,59405.0,0.0809031]
[1724177400952,0.25643634,59406.0,59405.0,0.0809031]
[1724177401160,0.66643534,59406.0,59405.0,0.0809031]
[1724177401365,0.93576834,59406.0,59405.0,0.0809031]
[1724177401731,0.22743634,59406.0,59405.0,0.0809031]
[1724177402090,0.28651148,59406.0,59405.0,0.0809031]
[1724177402307,0.22743634,59406.0,59405.0,0.0809031]
[1724177402478,0.28651262,59406.0,59405.0,0.0809031]
[1724177402879,0.22743634,59406.0,59405.0,0.0809031]
[1724177403089,0.22843634,59406.0,59405.0,0.0808531]
[1724177403529,0.23043634,59406.0,59405.0,0.0808531]
[1724177403733,0.50176934,59406.0,59405.0,0.0808531]
[1724177404077,0.98064388,59406.0,59405.0,0.0758531]
[1724177404484,0.70731088,59406.0,59405.0,0.0758531]
[1724177404716,0.69161126,59406.0,59405.0,0.0758531]
[1724177404924,0.9766418,59406.0,59405.0,0.0758531]
[1724177405143,0.96094426,59406.0,59405.0,0.0778531]
[1724177405403,0.97664182,59406.0,59405.0,0.0778531]
[1724177405608,0.97664182,59406.0,59405.0,0.0758531]
[1724177405997,0.97964182,59406.0,59405.0,0.0758531]
[1724177406991,0.71030882,59406.0,59405.0,0.0758531]
[1724177407191,0.27680982,59406.0,59405.0,0.0758531]
[1724177407349,0.41347582,59406.0,59405.0,0.0758531]
[1724177407551,0.68480882,59406.0,59405.0,0.0758531]
[1724177408193,0.27580982,59406.0,59405.0,0.0758531]
[1724177408588,0.41047582,59406.0,59405.0,0.0758531]
[1724177409271,0.27580982,59406.0,59405.0,0.0758531]
[1724177410212,0.27680982,59406.0,59405.0,0.0758531]